[Event "*** Titled Tuesday 3|2 Blitz"]
[Site "Chess.com"]
[Date "2016.10.04"]
[Round "5"]
[White "APL2001"]
[Black "GrigorGrigorov"]
[Result "1-0"]
[WhiteElo "2443"]
[BlackElo "2549"]
[TimeControl "180+2"]
[EndTime "12:04:16 PDT"]
[Termination "APL2001 won by resignation"]

1. e4 {[%clk 0:03:01.9]} 1... g6 {[%clk 0:03:00.6]} 2. d4 {[%clk 0:03:02.7]}
2... Bg7 {[%clk 0:03:01.8]} 3. Nc3 {[%clk 0:03:04.3]} 3... c6 {[%clk 0:03:02.8]}
4. Nf3 {[%clk 0:03:05.1]} 4... d6 {[%clk 0:03:03.7]} 5. Be2 {[%clk 0:03:02.3]}
5... Nf6 {[%clk 0:03:04.6]} 6. Be3 {[%clk 0:03:03]} 6... O-O {[%clk 0:03:05.1]}
7. h3 {[%clk 0:03:04.1]} 7... Nbd7 {[%clk 0:03:05.1]} 8. a4 {[%clk 0:03:04.9]}
8... e5 {[%clk 0:03:02.4]} 9. O-O {[%clk 0:03:03.1]} 9... Re8 {[%clk 0:03:02.2]}
10. dxe5 {[%clk 0:03:02.9]} 10... Nxe5 {[%clk 0:03:02.9]} 11. Qd2 {[%clk
0:02:59.3]} 11... Be6 {[%clk 0:02:24]} 12. Nxe5 {[%clk 0:02:59.3]} 12... dxe5
{[%clk 0:02:24.8]} 13. Qxd8 {[%clk 0:03:00.3]} 13... Rexd8 {[%clk 0:02:25.1]}
14. Rad1 {[%clk 0:03:01]} 14... Rxd1 {[%clk 0:02:23.4]} 15. Rxd1 {[%clk
0:03:01.5]} 15... Bf8 {[%clk 0:02:18.1]} 16. Bg5 {[%clk 0:02:49]} 16... Kg7
{[%clk 0:02:15.6]} 17. Be3 {[%clk 0:02:49.2]} 17... Bb4 {[%clk 0:02:14.4]} 18.
f3 {[%clk 0:02:50.4]} 18... Nd7 {[%clk 0:02:06.8]} 19. Nb1 {[%clk 0:02:45]}
19... Bc5 {[%clk 0:02:01]} 20. Kf2 {[%clk 0:02:44.5]} 20... Bxe3+ {[%clk
0:01:57.9]} 21. Kxe3 {[%clk 0:02:45.7]} 21... Kf6 {[%clk 0:01:57.4]} 22. b3
{[%clk 0:02:43.5]} 22... Ke7 {[%clk 0:01:56]} 23. Nd2 {[%clk 0:02:42.1]} 23...
h5 {[%clk 0:01:53.3]} 24. Bc4 {[%clk 0:02:42.5]} 24... h4 {[%clk 0:01:52.7]} 25.
Bxe6 {[%clk 0:02:43]} 25... Kxe6 {[%clk 0:01:53.4]} 26. Nc4 {[%clk 0:02:44.6]}
26... Ke7 {[%clk 0:01:44.9]} 27. Rd2 {[%clk 0:02:03.2]} 27... f6 {[%clk
0:01:41.3]} 28. Rd1 {[%clk 0:02:02.2]} 28... Nc5 {[%clk 0:01:40.7]} 29. f4
{[%clk 0:01:43.9]} 29... exf4+ {[%clk 0:01:36.4]} 30. Kxf4 {[%clk 0:01:45]}
30... Rh8 {[%clk 0:01:26.3]} 31. e5 {[%clk 0:01:07.9]} 31... Ne6+ {[%clk
0:01:18.6]} 32. Ke3 {[%clk 0:01:08.6]} 32... f5 {[%clk 0:00:59.5]} 33. Na5
{[%clk 0:01:08.3]} 33... Rd8 {[%clk 0:00:28.5]} 34. Rd3 {[%clk 0:00:45.4]} 34...
Rxd3+ {[%clk 0:00:21.8]} 35. cxd3 {[%clk 0:00:46.2]} 35... Nc5 {[%clk
0:00:21.9]} 36. d4 {[%clk 0:00:44.3]} 36... Na6 {[%clk 0:00:20.1]} 37. Nxb7
{[%clk 0:00:43.7]} 37... Nb4 {[%clk 0:00:21.3]} 38. Nc5 {[%clk 0:00:44.5]} 38...
g5 {[%clk 0:00:22.2]} 39. Kd2 {[%clk 0:00:33]} 39... g4 {[%clk 0:00:21.7]} 40.
hxg4 {[%clk 0:00:22]} 40... fxg4 {[%clk 0:00:23]} 41. Ke3 {[%clk 0:00:22.9]}
41... Nd5+ {[%clk 0:00:23.5]} 42. Kf2 {[%clk 0:00:24.3]} 42... Nf4 {[%clk
0:00:23.1]} 43. Ne4 {[%clk 0:00:23.3]} 43... Ke6 {[%clk 0:00:22.8]} 44. Nc3
{[%clk 0:00:18.4]} 44... Nd3+ {[%clk 0:00:19.6]} 45. Ke3 {[%clk 0:00:19.3]}
45... Ne1 {[%clk 0:00:18.4]} 46. Kf2 {[%clk 0:00:20.4]} 46... Nc2 {[%clk
0:00:19.5]} 47. Ne2 {[%clk 0:00:21.5]} 47... Kf5 {[%clk 0:00:18.1]} 48. a5
{[%clk 0:00:20.8]} 48... Na1 {[%clk 0:00:17.4]} 49. b4 {[%clk 0:00:21.6]} 49...
Nc2 {[%clk 0:00:18.6]} 50. d5 {[%clk 0:00:18.4]} 50... Kxe5 {[%clk 0:00:13.6]}
51. dxc6 {[%clk 0:00:18.3]} 51... Kd6 {[%clk 0:00:12.9]} 52. b5 {[%clk
0:00:19.6]} 52... Na3 {[%clk 0:00:12.9]} 53. Nc3 {[%clk 0:00:20.6]} 53... Nc4
{[%clk 0:00:13.1]} 54. a6 {[%clk 0:00:16.9]} 54... Ne5 {[%clk 0:00:14.1]} 55.
Ne4+ {[%clk 0:00:16.5]} 55... Kc7 {[%clk 0:00:14.6]} 56. Nc3 {[%clk 0:00:17.9]}
56... Kd6 {[%clk 0:00:14.2]} 57. Ne4+ {[%clk 0:00:18.9]} 57... Kc7 {[%clk
0:00:15.4]} 58. Nf6 {[%clk 0:00:20.5]} 58... h3 {[%clk 0:00:15.4]} 59. gxh3
{[%clk 0:00:20.3]} 59... gxh3 {[%clk 0:00:16.4]} 60. Nd5+ {[%clk 0:00:21.5]}
60... Kd6 {[%clk 0:00:16.1]} 61. c7 {[%clk 0:00:22]} 61... Kd7 {[%clk
0:00:17.2]} 62. b6 {[%clk 0:00:23.3]} 62... Nc4 {[%clk 0:00:15.5]} 63. b7 {[%clk
0:00:21.6]} 1-0

[Event "*** Titled Tuesday 3|2 Blitz"]
[Site "Chess.com"]
[Date "2016.10.04"]
[Round "5"]
[White "Gordima"]
[Black "ChessSkool"]
[Result "1-0"]
[WhiteElo "2553"]
[BlackElo "2426"]
[TimeControl "180+2"]
[EndTime "12:04:39 PDT"]
[Termination "Gordima won on time"]

1. e4 {[%clk 0:03:02]} 1... c6 {[%clk 0:03:00.6]} 2. Nc3 {[%clk 0:03:02.4]} 2...
d5 {[%clk 0:03:02.5]} 3. Qe2 {[%clk 0:03:04.1]} 3... dxe4 {[%clk 0:02:53.5]} 4.
Nxe4 {[%clk 0:03:04.6]} 4... g6 {[%clk 0:02:39.9]} 5. f4 {[%clk 0:02:57.4]} 5...
Bg7 {[%clk 0:02:39.9]} 6. Nf3 {[%clk 0:02:58.6]} 6... Nf6 {[%clk 0:02:38.7]} 7.
d3 {[%clk 0:02:59.7]} 7... O-O {[%clk 0:02:36.2]} 8. g3 {[%clk 0:03:01.1]} 8...
Qb6 {[%clk 0:02:22.1]} 9. c3 {[%clk 0:02:54.6]} 9... Nd5 {[%clk 0:02:10.4]} 10.
Bg2 {[%clk 0:02:49.6]} 10... Nd7 {[%clk 0:02:07.2]} 11. Qf2 {[%clk 0:02:39.3]}
11... N7f6 {[%clk 0:02:00.4]} 12. Qxb6 {[%clk 0:02:34.3]} 12... axb6 {[%clk
0:02:01]} 13. a3 {[%clk 0:02:32.7]} 13... Bf5 {[%clk 0:02:00.7]} 14. Ne5 {[%clk
0:02:31.7]} 14... Ng4 {[%clk 0:01:53.5]} 15. d4 {[%clk 0:02:21.8]} 15... Nge3
{[%clk 0:01:51.6]} 16. Bxe3 {[%clk 0:02:14.9]} 16... Nxe3 {[%clk 0:01:53.5]} 17.
Kf2 {[%clk 0:01:58.5]} 17... Nxg2 {[%clk 0:01:40.5]} 18. Nd2 {[%clk 0:01:57.7]}
18... Bh3 {[%clk 0:01:33.9]} 19. Ndf3 {[%clk 0:01:50.9]} 19... b5 {[%clk
0:00:59.6]} 20. Rhd1 {[%clk 0:01:46.7]} 20... h6 {[%clk 0:00:52.7]} 21. Nd3
{[%clk 0:01:40.1]} 21... Rfd8 {[%clk 0:00:49.2]} 22. Rd2 {[%clk 0:01:33.9]}
22... Bf6 {[%clk 0:00:37.7]} 23. Ng1 {[%clk 0:01:27.6]} 23... Nxf4 {[%clk
0:00:37.7]} 24. gxf4 {[%clk 0:01:11]} 24... Bf5 {[%clk 0:00:38.5]} 25. Rad1
{[%clk 0:01:11.9]} 25... Bg4 {[%clk 0:00:35.5]} 26. Nf3 {[%clk 0:01:02.9]} 26...
Kg7 {[%clk 0:00:32.3]} 27. Nc5 {[%clk 0:01:03.1]} 27... b6 {[%clk 0:00:29.7]}
28. Ne4 {[%clk 0:01:04.4]} 28... e6 {[%clk 0:00:25.6]} 29. Ke3 {[%clk
0:01:05.5]} 29... Be7 {[%clk 0:00:26]} 30. Rg1 {[%clk 0:01:05.6]} 30... Bxf3
{[%clk 0:00:26.4]} 31. Kxf3 {[%clk 0:01:06.4]} 31... Rd5 {[%clk 0:00:23.3]} 32.
Rgd1 {[%clk 0:00:55.3]} 32... Rad8 {[%clk 0:00:24.2]} 33. Ng3 {[%clk 0:00:53.7]}
33... Bd6 {[%clk 0:00:22.1]} 34. Re2 {[%clk 0:00:37.8]} 34... Bc7 {[%clk
0:00:21.7]} 35. Red2 {[%clk 0:00:29.4]} 35... h5 {[%clk 0:00:22.4]} 36. h3
{[%clk 0:00:28.8]} 36... Bd6 {[%clk 0:00:16.5]} 37. Ne4 {[%clk 0:00:28.4]} 37...
Be7 {[%clk 0:00:17.2]} 38. Ng3 {[%clk 0:00:29.2]} 38... c5 {[%clk 0:00:17.3]}
39. Ne4 {[%clk 0:00:27.5]} 39... f5 {[%clk 0:00:11.7]} 40. Ng3 {[%clk
0:00:22.5]} 40... cxd4 {[%clk 0:00:08.2]} 41. Rxd4 {[%clk 0:00:20]} 41... Rxd4
{[%clk 0:00:09.1]} 42. Rxd4 {[%clk 0:00:21.3]} 42... Rxd4 {[%clk 0:00:09.9]} 43.
cxd4 {[%clk 0:00:22.8]} 43... Bf6 {[%clk 0:00:10.8]} 44. Ne2 {[%clk 0:00:23.6]}
44... Kf7 {[%clk 0:00:09.6]} 45. Ke3 {[%clk 0:00:24.6]} 45... Be7 {[%clk
0:00:09.6]} 46. b4 {[%clk 0:00:25]} 46... g5 {[%clk 0:00:08.5]} 47. fxg5 {[%clk
0:00:25.9]} 47... Bxg5+ {[%clk 0:00:10.4]} 48. Kd3 {[%clk 0:00:24.3]} 48... Kf6
{[%clk 0:00:09.3]} 49. Nc3 {[%clk 0:00:25.5]} 49... Bc1 {[%clk 0:00:10.1]} 50.
Nxb5 {[%clk 0:00:26.5]} 50... Kg5 {[%clk 0:00:09.5]} 51. Nc7 {[%clk 0:00:27.8]}
51... Bxa3 {[%clk 0:00:07.9]} 52. Nxe6+ {[%clk 0:00:28.7]} 52... Kf6 {[%clk
0:00:09.3]} 53. Nf4 {[%clk 0:00:29.4]} 53... Kg5 {[%clk 0:00:08.4]} 54. Ne6+
{[%clk 0:00:22.2]} 54... Kf6 {[%clk 0:00:09.3]} 55. Nf4 {[%clk 0:00:21.6]} 55...
h4 {[%clk 0:00:06.4]} 56. b5 {[%clk 0:00:10.3]} 56... Bd6 {[%clk 0:00:03.6]} 57.
Nd5+ {[%clk 0:00:10.5]} 57... Kg5 {[%clk 0:00:05.3]} 58. Ke3 {[%clk 0:00:08.5]}
58... Kg6 {[%clk 0:00:02.6]} 59. Nxb6 {[%clk 0:00:09.2]} 59... Kf6 {[%clk
0:00:03.5]} 60. Nc4 {[%clk 0:00:10.2]} 60... Bb8 {[%clk 0:00:04.2]} 61. b6
{[%clk 0:00:11.4]} 61... Ke6 {[%clk 0:00:05.3]} 62. Kd3 {[%clk 0:00:08.9]} 62...
Kd5 {[%clk 0:00:03.4]} 63. Ne3+ {[%clk 0:00:10.2]} 63... Ke6 {[%clk 0:00:02.5]}
64. b7 {[%clk 0:00:06.9]} 64... f4 {[%clk 0:00:02.9]} 65. Ng2 {[%clk 0:00:06.8]}
1-0

[Event "*** Titled Tuesday 3|2 Blitz"]
[Site "Chess.com"]
[Date "2016.10.04"]
[Round "5"]
[White "dabee"]
[Black "MateusViageiro"]
[Result "1-0"]
[WhiteElo "2466"]
[BlackElo "2308"]
[TimeControl "180+2"]
[EndTime "12:05:16 PDT"]
[Termination "dabee won by resignation"]

1. d4 {[%clk 0:03:00.5]} 1... Nf6 {[%clk 0:03:00.1]} 2. Bg5 {[%clk 0:03:01]}
2... e6 {[%clk 0:02:58.4]} 3. Nd2 {[%clk 0:03:00.1]} 3... d5 {[%clk 0:02:58.7]}
4. e3 {[%clk 0:02:59.9]} 4... Nbd7 {[%clk 0:02:59.6]} 5. Ngf3 {[%clk 0:02:59.5]}
5... Be7 {[%clk 0:03:00.6]} 6. Bd3 {[%clk 0:02:59.8]} 6... c5 {[%clk 0:03:01.5]}
7. c3 {[%clk 0:02:59.3]} 7... O-O {[%clk 0:03:01.2]} 8. Ne5 {[%clk 0:02:58.5]}
8... cxd4 {[%clk 0:02:48.7]} 9. exd4 {[%clk 0:02:58.2]} 9... Nxe5 {[%clk
0:02:46.8]} 10. dxe5 {[%clk 0:02:58.1]} 10... Nd7 {[%clk 0:02:47.9]} 11. Bf4
{[%clk 0:02:56.2]} 11... Qb6 {[%clk 0:02:41.3]} 12. Rb1 {[%clk 0:02:53.9]} 12...
Nc5 {[%clk 0:02:37.7]} 13. Bc2 {[%clk 0:02:47.6]} 13... Bd7 {[%clk 0:02:38.7]}
14. Nf3 {[%clk 0:02:28.4]} 14... Bb5 {[%clk 0:02:38.8]} 15. a4 {[%clk
0:02:25.6]} 15... Bc6 {[%clk 0:02:20.4]} 16. O-O {[%clk 0:02:04.4]} 16... a5
{[%clk 0:02:20.4]} 17. Nd4 {[%clk 0:01:59.8]} 17... Rfd8 {[%clk 0:02:17]} 18.
Re1 {[%clk 0:01:47.1]} 18... Rac8 {[%clk 0:02:14.2]} 19. Re3 {[%clk 0:01:46.7]}
19... g6 {[%clk 0:02:03.6]} 20. Rh3 {[%clk 0:01:34.4]} 20... Ne4 {[%clk
0:02:03.3]} 21. f3 {[%clk 0:01:31.4]} 21... Nc5 {[%clk 0:02:01]} 22. Be3 {[%clk
0:01:19.5]} 22... Qc7 {[%clk 0:01:59.9]} 23. f4 {[%clk 0:01:19]} 23... Ne4
{[%clk 0:02:00]} 24. Qg4 {[%clk 0:01:11.8]} 24... Bd7 {[%clk 0:01:47.1]} 25. Rf1
{[%clk 0:00:57.7]} 25... Qc4 {[%clk 0:01:46.5]} 26. f5 {[%clk 0:00:42.5]} 26...
exf5 {[%clk 0:01:40.4]} 27. Nxf5 {[%clk 0:00:43.4]} 27... Bxf5 {[%clk
0:01:36.5]} 28. Rxf5 {[%clk 0:00:43.4]} 28... Bc5 {[%clk 0:01:31.7]} 29. Rf4
{[%clk 0:00:36]} 29... Bxe3+ {[%clk 0:01:17.9]} 30. Rxe3 {[%clk 0:00:35.7]}
30... Qc5 {[%clk 0:01:19.1]} 31. Qe2 {[%clk 0:00:16.7]} 31... Ng5 {[%clk
0:01:14.6]} 32. Kh1 {[%clk 0:00:14.7]} 32... Ne6 {[%clk 0:01:13.9]} 33. Rh4
{[%clk 0:00:13.9]} 33... d4 {[%clk 0:01:13.5]} 34. Reh3 {[%clk 0:00:14.7]} 34...
Nf8 {[%clk 0:00:55.7]} 35. e6 {[%clk 0:00:14]} 35... fxe6 {[%clk 0:00:51.3]} 36.
Bb3 {[%clk 0:00:14.5]} 36... Qe7 {[%clk 0:00:47.5]} 37. Re4 {[%clk 0:00:14.4]}
37... d3 {[%clk 0:00:46.9]} 38. Rxd3 {[%clk 0:00:15.1]} 38... Rxd3 {[%clk
0:00:47.6]} 39. Qxd3 {[%clk 0:00:16.3]} 39... Rd8 {[%clk 0:00:48]} 40. Qe2
{[%clk 0:00:17.3]} 40... Rd6 {[%clk 0:00:47.4]} 41. h3 {[%clk 0:00:18.3]} 41...
Qd7 {[%clk 0:00:47.1]} 42. Re5 {[%clk 0:00:18.7]} 42... b6 {[%clk 0:00:47.3]}
43. Qe3 {[%clk 0:00:18.9]} 43... Kg7 {[%clk 0:00:47.7]} 44. Rb5 {[%clk
0:00:19.2]} 44... Qd8 {[%clk 0:00:43.8]} 45. Re5 {[%clk 0:00:17.5]} 45... Qf6
{[%clk 0:00:43.4]} 46. Re4 {[%clk 0:00:16.5]} 46... Qe7 {[%clk 0:00:37.8]} 47.
Kh2 {[%clk 0:00:17]} 47... Qc7 {[%clk 0:00:35.6]} 48. Qf4 {[%clk 0:00:18]} 48...
Qe7 {[%clk 0:00:30.4]} 49. Qe5+ {[%clk 0:00:18.5]} 49... Kg8 {[%clk 0:00:29]}
50. Rf4 {[%clk 0:00:19.6]} 50... Qd7 {[%clk 0:00:25.4]} 51. Rf6 {[%clk
0:00:19.4]} 51... Qe7 {[%clk 0:00:24.7]} 52. Qf4 {[%clk 0:00:19]} 52... Kg7
{[%clk 0:00:20.6]} 53. Rf7+ {[%clk 0:00:17.9]} 53... Qxf7 {[%clk 0:00:21.2]} 54.
Qxd6 {[%clk 0:00:19.1]} 54... Qf5 {[%clk 0:00:19.5]} 55. Qxb6 {[%clk 0:00:17]}
55... Qf4+ {[%clk 0:00:20.4]} 56. Kh1 {[%clk 0:00:17.4]} 56... Qc1+ {[%clk
0:00:21.1]} 57. Kh2 {[%clk 0:00:15.7]} 57... Qf4+ {[%clk 0:00:21.4]} 58. Kh1
{[%clk 0:00:16.7]} 58... Qc1+ {[%clk 0:00:22.5]} 59. Qg1 {[%clk 0:00:18.1]}
59... Qxb2 {[%clk 0:00:23.7]} 60. Qd4+ {[%clk 0:00:18.9]} 60... Kg8 {[%clk
0:00:24]} 61. Bc4 {[%clk 0:00:18.1]} 61... Qa1+ {[%clk 0:00:22.8]} 62. Kh2
{[%clk 0:00:19]} 62... Qe1 {[%clk 0:00:23.5]} 63. Bb5 {[%clk 0:00:17.4]} 63...
Kf7 {[%clk 0:00:18.8]} 64. c4 {[%clk 0:00:18.4]} 64... Ke7 {[%clk 0:00:16.6]}
65. c5 {[%clk 0:00:19.4]} 65... Qb4 {[%clk 0:00:15.7]} 66. Qd6+ {[%clk
0:00:19.6]} 66... Kf7 {[%clk 0:00:16.1]} 67. Qe5 {[%clk 0:00:19.4]} 67... Qd2
{[%clk 0:00:13]} 68. c6 {[%clk 0:00:19.6]} 68... Ke7 {[%clk 0:00:12.8]} 69. c7
{[%clk 0:00:19.6]} 69... Qc1 {[%clk 0:00:12.9]} 70. Qg7+ {[%clk 0:00:20.3]} 1-0

[Event "*** Titled Tuesday 3|2 Blitz"]
[Site "Chess.com"]
[Date "2016.10.04"]
[Round "6"]
[White "Iuri_Shkuro"]
[Black "Dale"]
[Result "1-0"]
[WhiteElo "2534"]
[BlackElo "2089"]
[TimeControl "180+2"]
[EndTime "12:09:01 PDT"]
[Termination "Iuri_Shkuro won by checkmate"]

1. e4 {[%clk 0:03:01.9]} 1... Nf6 {[%clk 0:03:00.4]} 2. e5 {[%clk 0:03:01.1]}
2... Nd5 {[%clk 0:03:01.1]} 3. d4 {[%clk 0:03:01.9]} 3... c5 {[%clk 0:03:01.2]}
4. c4 {[%clk 0:02:58.6]} 4... Nb4 {[%clk 0:03:01.5]} 5. a3 {[%clk 0:02:54.2]}
5... Qa5 {[%clk 0:03:01.8]} 6. Bd2 {[%clk 0:02:49]} 6... d6 {[%clk 0:02:57.5]}
7. Nc3 {[%clk 0:02:40.7]} 7... Bf5 {[%clk 0:02:58]} 8. axb4 {[%clk 0:02:38.8]}
8... Qxa1 {[%clk 0:02:58.7]} 9. Qxa1 {[%clk 0:02:38.8]} 9... cxd4 {[%clk
0:02:57.3]} 10. Nd5 {[%clk 0:02:35]} 10... Kd8 {[%clk 0:02:55.1]} 11. Qa5+
{[%clk 0:02:30.5]} 11... b6 {[%clk 0:02:55.6]} 12. Nxb6 {[%clk 0:02:26.7]} 12...
Nc6 {[%clk 0:02:56.4]} 13. Qa4 {[%clk 0:02:18.5]} 13... axb6 {[%clk 0:02:55.5]}
14. Qxa8+ {[%clk 0:02:18.2]} 14... Kc7 {[%clk 0:02:55.7]} 15. exd6+ {[%clk
0:02:10.2]} 15... exd6 {[%clk 0:02:55.6]} 16. b5 {[%clk 0:02:08.4]} 16... Ne5
{[%clk 0:02:55.1]} 17. Nf3 {[%clk 0:02:00.4]} 17... g5 {[%clk 0:02:51.5]} 18.
Nxe5 {[%clk 0:01:56.9]} 18... dxe5 {[%clk 0:02:52]} 19. Qc6+ {[%clk 0:01:54.8]}
19... Kb8 {[%clk 0:02:48.1]} 20. Qxb6+ {[%clk 0:01:54.4]} 20... Kc8 {[%clk
0:02:47.5]} 21. Qc6+ {[%clk 0:01:52]} 21... Kb8 {[%clk 0:02:48]} 22. b6 {[%clk
0:01:46.2]} 22... Bd6 {[%clk 0:02:46.5]} 23. Qxd6+ {[%clk 0:01:45.2]} 23... Kb7
{[%clk 0:02:45.4]} 24. Qc7+ {[%clk 0:01:45]} 24... Ka6 {[%clk 0:02:46.4]} 25.
Qa7# {[%clk 0:01:43.5]} 1-0

[Event "*** Titled Tuesday 3|2 Blitz"]
[Site "Chess.com"]
[Date "2016.10.04"]
[Round "6"]
[White "Peroncio"]
[Black "pedromartinez91"]
[Result "1-0"]
[WhiteElo "2457"]
[BlackElo "2347"]
[TimeControl "180+2"]
[EndTime "12:09:41 PDT"]
[Termination "Peroncio won by resignation"]

1. d4 {[%clk 0:03:01.9]} 1... d5 {[%clk 0:02:59]} 2. c4 {[%clk 0:03:02.5]} 2...
e6 {[%clk 0:02:59.9]} 3. Nc3 {[%clk 0:03:02.8]} 3... Be7 {[%clk 0:03:01.2]} 4.
cxd5 {[%clk 0:03:04.3]} 4... exd5 {[%clk 0:03:02]} 5. Bf4 {[%clk 0:03:05.7]}
5... c6 {[%clk 0:03:00.1]} 6. e3 {[%clk 0:03:06.8]} 6... Bf5 {[%clk 0:03:01]} 7.
Nf3 {[%clk 0:03:05]} 7... Nf6 {[%clk 0:03:00.7]} 8. h3 {[%clk 0:03:05.5]} 8...
Nbd7 {[%clk 0:02:59.8]} 9. Bd3 {[%clk 0:03:04.7]} 9... Bxd3 {[%clk 0:03:00.4]}
10. Qxd3 {[%clk 0:03:06.6]} 10... O-O {[%clk 0:03:01.6]} 11. Rb1 {[%clk
0:03:06.2]} 11... a5 {[%clk 0:03:01.5]} 12. O-O {[%clk 0:03:05]} 12... Re8
{[%clk 0:03:02.4]} 13. Rfc1 {[%clk 0:03:06.3]} 13... Bb4 {[%clk 0:03:01.8]} 14.
Na4 {[%clk 0:03:06.6]} 14... Ne4 {[%clk 0:02:59.8]} 15. a3 {[%clk 0:03:07]}
15... Bd6 {[%clk 0:02:58.5]} 16. Bxd6 {[%clk 0:03:06.7]} 16... Nxd6 {[%clk
0:02:59.6]} 17. Nd2 {[%clk 0:03:08.1]} 17... Re6 {[%clk 0:02:51.9]} 18. Nc5
{[%clk 0:03:07.5]} 18... Nxc5 {[%clk 0:02:52.1]} 19. Rxc5 {[%clk 0:03:09.4]}
19... Rg6 {[%clk 0:02:49.3]} 20. Qe2 {[%clk 0:03:06.8]} 20... Qg5 {[%clk
0:02:44.5]} 21. Qf3 {[%clk 0:03:01.2]} 21... Nf5 {[%clk 0:02:39.5]} 22. g3
{[%clk 0:02:20.5]} 22... Nxd4 {[%clk 0:02:38.2]} 23. exd4 {[%clk 0:02:22.4]}
23... Qxd2 {[%clk 0:02:39]} 24. b4 {[%clk 0:02:17.9]} 24... Qxd4 {[%clk
0:02:31.8]} 25. Rc2 {[%clk 0:02:14]} 25... axb4 {[%clk 0:02:26.4]} 26. axb4
{[%clk 0:02:15.9]} 26... Rf6 {[%clk 0:02:21.2]} 27. Qe2 {[%clk 0:02:15.7]} 27...
h5 {[%clk 0:02:18.5]} 28. Qxh5 {[%clk 0:02:15.5]} 28... Ra3 {[%clk 0:02:15.1]}
29. Qg4 {[%clk 0:02:14.3]} 29... Kh7 {[%clk 0:02:10.7]} 30. Qxd4 {[%clk
0:02:13.9]} 1-0

[Event "*** Titled Tuesday 3|2 Blitz"]
[Site "Chess.com"]
[Date "2016.10.04"]
[Round "6"]
[White "FLchessplayer"]
[Black "FrankieJay"]
[Result "0-1"]
[WhiteElo "2022"]
[BlackElo "2190"]
[TimeControl "180+2"]
[EndTime "12:10:07 PDT"]
[Termination "FrankieJay won by resignation"]

1. d4 {[%clk 0:03:02]} 1... Nf6 {[%clk 0:02:59.2]} 2. Nf3 {[%clk 0:03:03]} 2...
g6 {[%clk 0:03:00.2]} 3. Nc3 {[%clk 0:03:02.1]} 3... d5 {[%clk 0:03:00.8]} 4.
Bf4 {[%clk 0:03:01.4]} 4... Bg7 {[%clk 0:03:00]} 5. h3 {[%clk 0:03:01]} 5... O-O
{[%clk 0:03:00.6]} 6. e3 {[%clk 0:03:02.1]} 6... c6 {[%clk 0:02:57.7]} 7. Bd3
{[%clk 0:02:59]} 7... Re8 {[%clk 0:02:51.8]} 8. O-O {[%clk 0:02:58.8]} 8... Bf5
{[%clk 0:02:47]} 9. a3 {[%clk 0:02:56.5]} 9... Bxd3 {[%clk 0:02:47.7]} 10. cxd3
{[%clk 0:02:57.4]} 10... Nbd7 {[%clk 0:02:45.5]} 11. b4 {[%clk 0:02:57.2]} 11...
a6 {[%clk 0:02:42.3]} 12. Na4 {[%clk 0:02:54.2]} 12... Nh5 {[%clk 0:02:01.4]}
13. Bh2 {[%clk 0:02:51.2]} 13... e5 {[%clk 0:02:02.4]} 14. dxe5 {[%clk
0:02:51.5]} 14... Nxe5 {[%clk 0:02:03.1]} 15. Nxe5 {[%clk 0:02:50.5]} 15... Bxe5
{[%clk 0:02:04.3]} 16. Bxe5 {[%clk 0:02:50.4]} 16... Rxe5 {[%clk 0:02:06.2]} 17.
d4 {[%clk 0:02:47.9]} 17... Re7 {[%clk 0:01:56.5]} 18. Qd3 {[%clk 0:02:46.1]}
18... f5 {[%clk 0:01:55.6]} 19. Nc5 {[%clk 0:02:40.6]} 19... Nf6 {[%clk
0:01:55.5]} 20. f3 {[%clk 0:02:35.7]} 20... Qd6 {[%clk 0:01:40.1]} 21. Rfe1
{[%clk 0:02:33.6]} 21... Rae8 {[%clk 0:01:39.3]} 22. Re2 {[%clk 0:02:30.9]}
22... Nh5 {[%clk 0:01:35.2]} 23. Rb1 {[%clk 0:02:20.9]} 23... Nf4 {[%clk
0:01:32.5]} 24. exf4 {[%clk 0:02:18.2]} 24... Rxe2 {[%clk 0:01:33.6]} 25. Nxb7
{[%clk 0:02:16.7]} 25... Qxf4 {[%clk 0:01:34.8]} 26. Na5 {[%clk 0:02:08]} 26...
Qg3 {[%clk 0:01:35.3]} 0-1

[Event "*** Titled Tuesday 3|2 Blitz"]
[Site "Chess.com"]
[Date "2016.10.04"]
[Round "6"]
[White "Kouzari"]
[Black "dawtonlms"]
[Result "1-0"]
[WhiteElo "2425"]
[BlackElo "2153"]
[TimeControl "180+2"]
[EndTime "12:10:13 PDT"]
[Termination "Kouzari won by resignation"]

1. e4 {[%clk 0:03:02]} 1... c5 {[%clk 0:03:00.6]} 2. d4 {[%clk 0:03:02.4]} 2...
cxd4 {[%clk 0:03:00.5]} 3. c3 {[%clk 0:03:04.3]} 3... g6 {[%clk 0:03:01.9]} 4.
Bc4 {[%clk 0:03:00]} 4... Bg7 {[%clk 0:03:02.5]} 5. Qb3 {[%clk 0:03:01.2]} 5...
e6 {[%clk 0:03:02]} 6. cxd4 {[%clk 0:03:02.1]} 6... Bxd4 {[%clk 0:03:01.9]} 7.
Nf3 {[%clk 0:03:02.4]} 7... Bg7 {[%clk 0:03:02.7]} 8. Nc3 {[%clk 0:03:00.8]}
8... a6 {[%clk 0:03:02.2]} 9. Bg5 {[%clk 0:02:58.6]} 9... Ne7 {[%clk 0:03:02.7]}
10. O-O {[%clk 0:02:58.5]} 10... Nbc6 {[%clk 0:03:02.8]} 11. Rfd1 {[%clk
0:02:59.2]} 11... Na5 {[%clk 0:02:59.2]} 12. Qb4 {[%clk 0:03:00]} 12... Nxc4
{[%clk 0:03:00.2]} 13. Qxc4 {[%clk 0:03:01.9]} 13... h6 {[%clk 0:03:00.7]} 14.
Bh4 {[%clk 0:03:02.4]} 14... g5 {[%clk 0:03:01.4]} 15. Bg3 {[%clk 0:03:03.6]}
15... O-O {[%clk 0:02:59.1]} 16. Bc7 {[%clk 0:03:04.3]} 16... Qe8 {[%clk
0:02:58.8]} 17. e5 {[%clk 0:03:05.9]} 17... f6 {[%clk 0:02:42.1]} 18. Ne4 {[%clk
0:03:02]} 18... fxe5 {[%clk 0:02:40.4]} 19. Nd6 {[%clk 0:03:02.8]} 19... Qg6
{[%clk 0:02:32.8]} 20. Bb6 {[%clk 0:03:03.6]} 20... Nd5 {[%clk 0:02:31.3]} 21.
Rxd5 {[%clk 0:03:03.4]} 21... exd5 {[%clk 0:02:31.2]} 22. Qxd5+ {[%clk
0:03:05.3]} 22... Kh7 {[%clk 0:02:32.4]} 23. Nd2 {[%clk 0:03:04.1]} 23... Rf6
{[%clk 0:02:28.6]} 24. N2e4 {[%clk 0:03:04.7]} 24... Re6 {[%clk 0:02:23.1]} 25.
Rc1 {[%clk 0:03:05.1]} 25... Bf8 {[%clk 0:01:33.4]} 26. Nxc8 {[%clk 0:02:59.1]}
26... Rxb6 {[%clk 0:01:22.3]} 27. Qxd7+ {[%clk 0:02:57.7]} 27... Kg8 {[%clk
0:01:17.8]} 28. Nxb6 {[%clk 0:02:54.3]} 28... Qxb6 {[%clk 0:01:19.7]} 29. Rc7
{[%clk 0:02:55.8]} 1-0

[Event "*** Titled Tuesday 3|2 Blitz"]
[Site "Chess.com"]
[Date "2016.10.04"]
[Round "6"]
[White "Mastervlad8"]
[Black "lexiel"]
[Result "1-0"]
[WhiteElo "2132"]
[BlackElo "2154"]
[TimeControl "180+2"]
[EndTime "12:10:23 PDT"]
[Termination "Mastervlad8 won on time"]

1. e4 {[%clk 0:02:57.2]} 1... d6 {[%clk 0:02:54.7]} 2. d4 {[%clk 0:02:57.3]}
2... Nf6 {[%clk 0:02:54.5]} 3. Nc3 {[%clk 0:02:57.4]} 3... e5 {[%clk 0:02:54]}
4. Nf3 {[%clk 0:02:50.7]} 4... Nbd7 {[%clk 0:02:41.7]} 5. Bc4 {[%clk 0:02:49.7]}
5... Be7 {[%clk 0:02:42]} 6. dxe5 {[%clk 0:02:40.7]} 6... dxe5 {[%clk
0:02:35.6]} 7. O-O {[%clk 0:02:31.1]} 7... O-O {[%clk 0:02:35.3]} 8. Qe2 {[%clk
0:02:23.6]} 8... c6 {[%clk 0:02:35.9]} 9. h3 {[%clk 0:02:13.4]} 9... Qc7 {[%clk
0:02:35.9]} 10. Be3 {[%clk 0:02:13.4]} 10... b5 {[%clk 0:02:36.2]} 11. Bd3
{[%clk 0:02:05.9]} 1-0